bitfinex/quotes_BTCUSD_20250417
["timestamp","ask_amount","ask_price","bid_price","bid_amount"]
[1744915125099,0.23445284,85305.0,85304.0,0.34]
[1744915125328,0.23445172,85306.0,85304.0,0.57445459]
[1744915125516,0.24617014,85307.0,85304.0,0.57445459]
[1744915126089,0.01172236,85307.0,85304.0,0.57445387]
[1744915126292,0.23445009,85306.0,85304.0,0.34]
[1744915126770,0.23445284,85305.0,85304.0,0.34]
[1744915127135,0.23445009,85306.0,85304.0,0.34]
[1744915130820,0.23445284,85305.0,85303.0,0.34]
[1744915131009,0.23445559,85304.0,85303.0,0.34]
[1744915131454,0.23545559,85304.0,85303.0,0.34]
[1744915131656,0.001,85304.0,85303.0,0.34]
[1744915132031,0.001,85304.0,85303.0,0.23445834]
[1744915132912,0.001,85304.0,85303.0,0.34]
[1744915133119,0.23545559,85304.0,85303.0,0.34]
[1744915133692,0.001,85304.0,85303.0,0.34]
[1744915134303,0.001,85304.0,85302.0,0.0087368]
[1744915134304,0.23545559,85304.0,85302.0,0.0087368]
[1744915134499,0.23445834,85303.0,85301.0,0.02883643]
[1744915134817,0.23446109,85302.0,85301.0,0.02883643]
[1744915135026,0.24717836,85304.0,85301.0,0.02883643]
[1744915135230,0.23445884,85303.0,85301.0,0.02883643]
[1744915135430,0.23446109,85302.0,85301.0,0.02883643]
[1744915135651,0.23445884,85303.0,85301.0,0.02883643]
[1744915136162,0.23445884,85303.0,85302.0,0.34]
[1744915136866,0.001,85304.0,85302.0,0.57445958]
[1744915137146,0.001,85304.0,85303.0,0.57445834]
[1744915138092,0.01172071,85319.0,85314.0,0.0117214]
[1744915138286,0.01172016,85323.0,85315.0,0.01172126]
[1744915138491,0.01172016,85323.0,85318.0,0.23441462]
[1744915138492,0.24612946,85321.0,85318.0,0.23441462]
[1744915138772,0.23440837,85322.0,85319.0,0.23441437]
[1744915138927,0.24612834,85323.0,85319.0,0.23441437]
[1744915139142,0.24612834,85323.0,85320.0,0.2344107]
[1744915139369,0.24612834,85323.0,85319.0,0.23441437]
[1744915139549,0.24612834,85323.0,85319.0,0.24613508]
[1744915139948,0.23439799,85325.0,85319.0,0.24613508]
[1744915139949,0.01171934,85329.0,85322.0,0.0117203]
[1744915140150,0.24611226,85327.0,85323.0,0.01172016]
[1744915140349,0.24611449,85328.0,85321.0,0.01172044]
[1744915140350,0.01171934,85329.0,85325.0,0.01171989]
[1744915140550,0.2343869,85329.0,85325.0,0.24611244]
[1744915140854,0.2343869,85329.0,85324.0,0.01172003]
[1744915141051,0.24611297,85327.0,85324.0,0.01172003]
[1744915141266,0.24611297,85327.0,85323.0,0.24612332]
[1744915141579,0.01171989,85325.0,85320.0,0.24612992]
[1744915141798,0.23440293,85324.0,85321.0,0.23440862]
[1744915142005,0.01171989,85325.0,85319.0,0.34]
[1744915142157,0.0117203,85322.0,85318.0,0.34]
[1744915142358,0.24612108,85324.0,85319.0,0.24613508]
[1744915142561,0.24612108,85324.0,85321.0,0.23440826]
[1744915143532,0.01171893,85332.0,85328.0,0.24610853]
[1744915143706,0.23438395,85331.0,85328.0,0.25970831]
[1744915143936,0.01171907,85331.0,85328.0,0.01359978]
[1744915144085,0.01171893,85332.0,85328.0,0.02531926]
[1744915144282,0.01171893,85332.0,85328.0,0.0343072]
[1744915144488,0.23438229,85331.0,85328.0,0.02258772]
[1744915144687,0.2343869,85329.0,85328.0,0.02258772]
[1744915144874,0.23438455,85330.0,85328.0,0.02258772]
[1744915145494,0.2343869,85329.0,85328.0,0.02258772]
[1744915145701,0.2343869,85329.0,85328.0,0.00898794]
[1744915145900,0.2343869,85329.0,85326.0,0.01171975]
[1744915146248,0.2343869,85329.0,85327.0,0.34]
[1744915146520,0.23438964,85328.0,85327.0,0.34]
[1744915146911,0.2343869,85329.0,85327.0,0.34]
[1744915147237,0.2343869,85329.0,85327.0,0.57439206]
[1744915147439,0.24610391,85330.0,85327.0,0.57439206]
[1744915147649,0.24610391,85330.0,85327.0,0.5830626]
[1744915148586,0.24610391,85330.0,85327.0,0.34867054]
[1744915148785,0.23438928,85329.0,85327.0,0.34867054]
[1744915149109,0.0117192,85330.0,85327.0,0.58306155]
[1744915149264,0.24609453,85334.0,85330.0,0.0117192]
[1744915149466,0.24609453,85334.0,85327.0,0.59478116]
[1744915149467,0.01171893,85332.0,85327.0,0.59478116]
[1744915149807,0.2343814,85331.0,85328.0,0.23438728]
[1744915150009,0.24610189,85331.0,85327.0,0.25478237]
[1744915150221,0.24610189,85331.0,85328.0,0.23438903]
[1744915151129,0.24610446,85330.0,85327.0,0.24306276]
[1744915151427,0.24610446,85330.0,85327.0,0.24306223]
[1744915151628,0.01171907,85331.0,85328.0,0.23438853]
[1744915151836,0.01171907,85331.0,85327.0,0.02039015]
[1744915152036,0.01171907,85331.0,85327.0,0.00867054]
[1744915152190,0.2461029,85331.0,85328.0,0.23438709]
[1744915152395,0.24610463,85330.0,85325.0,0.01171989]
[1744915152659,0.24610463,85330.0,85327.0,0.23438979]
[1744915152981,0.24609648,85333.0,85327.0,0.23438979]
[1744915153179,0.01171879,85333.0,85327.0,0.23438979]
[1744915153386,0.01171934,85329.0,85327.0,0.23439224]
[1744915153583,0.24610538,85330.0,85328.0,0.23438802]
[1744915153863,0.0117192,85330.0,85327.0,0.2430707]
[1744915154057,0.24610137,85331.0,85329.0,0.23438522]
[1744915154261,0.24610137,85331.0,85329.0,0.2343869]
[1744915155167,0.24610137,85331.0,85329.0,0.24798751]
[1744915155716,0.01171907,85331.0,85329.0,0.24798751]
[1744915156815,0.01171879,85333.0,85330.0,0.23438183]
[1744915157017,0.24609704,85333.0,85330.0,0.23438183]
[1744915157218,0.24609982,85332.0,85329.0,0.24798698]
[1744915157515,0.01171893,85332.0,85329.0,0.24798751]
[1744915157736,0.01171893,85332.0,85330.0,0.23438175]
[1744915158965,0.24609856,85332.0,85330.0,0.23438175]
[1744915160181,0.01171893,85332.0,85330.0,0.23438175]
[1744915160388,0.24609509,85333.0,85330.0,0.23438175]
[1744915160816,0.33396198,85339.0,85333.0,0.23437591]
[1744915161034,0.33396198,85339.0,85335.0,0.23437042]
[1744915161035,0.002,85339.0,85335.0,0.23437042]
[1744915162582,8.479e-05,85336.0,85335.0,0.23437042]
[1744915162986,8.479e-05,85336.0,85335.0,0.23428062]
[1744915163345,0.00012479,85336.0,85335.0,0.23428062]
[1744915163975,0.00016479,85336.0,85335.0,0.23428062]
[1744915164178,0.00020479,85336.0,85335.0,0.23428062]
[1744915165034,0.00020479,85336.0,85335.0,0.57428062]
[1744915166142,0.00024479,85336.0,85335.0,0.57428062]
[1744915170689,0.00024479,85336.0,85335.0,0.57302362]
[1744915171322,0.00024479,85336.0,85335.0,0.57402362]
[1744915174398,0.002,85339.0,85335.0,0.57402362]
[1744915174399,0.01171508,85360.0,85353.0,0.23432014]
[1744915174683,0.04936618,85357.0,85356.0,0.34]
[1744915174898,0.04936618,85357.0,85356.0,0.57431276]
[1744915175569,0.04936618,85357.0,85356.0,0.34861821]
[1744915176314,0.04936618,85357.0,85356.0,0.60192307]
[1744915177557,0.04936618,85357.0,85356.0,0.36761031]
[1744915177704,0.04936618,85357.0,85356.0,0.0189921]
[1744915177705,0.4492241,85357.0,85356.0,0.0189921]
[1744915177909,0.4492241,85357.0,85341.0,0.29155968]
[1744915177910,0.23434845,85343.0,85342.0,0.34]
[1744915178936,0.23434845,85343.0,85342.0,0.01970889]
[1744915179314,0.0117181,85338.0,85334.0,0.34]
[1744915180106,0.24608111,85338.0,85335.0,0.02068558]
[1744915180315,0.2343674,85337.0,85335.0,0.02068558]
[1744915180536,0.23436767,85336.0,85335.0,0.02961038]
[1744915180998,0.23436767,85336.0,85335.0,0.02068558]
[1744915181233,0.2343674,85337.0,85335.0,0.02068558]
[1744915181471,0.0117181,85338.0,85335.0,0.02068558]
[1744915181679,0.23436767,85336.0,85335.0,0.02068558]
[1744915181897,0.24608184,85338.0,85335.0,0.02068558]
[1744915182125,0.23436767,85336.0,85335.0,0.02068558]
[1744915183720,0.23436767,85336.0,85335.0,0.02941817]
[1744915183954,0.23436767,85336.0,85335.0,0.001]
[1744915184156,0.23436767,85336.0,85335.0,0.01998822]
[1744915184308,0.23436767,85336.0,85335.0,0.001]
[1744915184708,0.24436767,85336.0,85335.0,0.001]
[1744915186879,0.36381558,85336.0,85335.0,0.001]
[1744915190044,0.36381558,85336.0,85335.0,0.02071082]
[1744915191220,0.36381558,85336.0,85335.0,0.01971082]
[1744915191616,0.23438206,85331.0,85329.0,0.26827942]
[1744915191775,0.23438206,85331.0,85329.0,0.05283611]
[1744915193689,0.23438206,85331.0,85329.0,0.04111677]
[1744915194550,0.23438415,85330.0,85329.0,0.04111677]
[1744915196467,0.01172003,85324.0,85320.0,1.02501456]
[1744915196683,0.01172044,85321.0,85318.0,0.13656]
[1744915196887,0.01172044,85321.0,85320.0,4.478e-05]
[1744915197090,0.24612865,85323.0,85320.0,4.478e-05]
[1744915197236,0.24611522,85326.0,85321.0,0.23440887]
[1744915197444,0.23440767,85322.0,85320.0,0.2461765]
[1744915197645,0.01172003,85324.0,85320.0,0.2461765]
[1744915197908,0.23440338,85323.0,85320.0,0.2461765]
[1744915198440,0.24612354,85323.0,85321.0,0.34]
[1744915199244,0.24612354,85323.0,85321.0,0.36259368]
[1744915200572,0.01,85324.0,85321.0,0.36259368]
[1744915200796,0.02172003,85324.0,85321.0,0.02259368]
[1744915201016,0.23440613,85322.0,85321.0,0.02259368]
[1744915201874,0.23440556,85323.0,85321.0,0.36259368]
[1744915202296,0.23440556,85323.0,85321.0,0.59700043]
[1744915202533,0.25612092,85324.0,85323.0,0.34]
[1744915202899,0.01,85324.0,85323.0,0.34]
[1744915203073,0.01,85324.0,85323.0,0.57440338]
[1744915204941,0.01,85324.0,85323.0,0.23440338]
[1744915210940,0.24608939,85335.0,85332.0,0.23437838]
[1744915211140,0.24608939,85335.0,85332.0,0.24609731]
[1744915211439,0.23437591,85333.0,85331.0,0.01171907]
[1744915211996,0.23437591,85333.0,85330.0,0.23438216]
[1744915212202,0.2460947,85333.0,85329.0,0.24610545]
[1744915212562,0.2460947,85333.0,85330.0,0.23438391]
[1744915212866,0.2343794,85332.0,85330.0,0.23438391]
[1744915214221,0.23438051,85332.0,85329.0,0.24610562]
[1744915214465,0.23438415,85330.0,85329.0,0.34]
[1744915215067,0.23438415,85330.0,85324.0,0.52595288]
[1744915215068,0.23439789,85325.0,85324.0,0.29155293]
[1744915215296,0.23440613,85322.0,85321.0,0.02259368]
[1744915220146,0.01172003,85324.0,85321.0,0.25700066]
[1744915220330,0.23439597,85326.0,85322.0,0.0117203]
[1744915220481,0.23439828,85325.0,85322.0,0.24612437]
[1744915220702,0.24611817,85325.0,85322.0,0.24612437]
[1744915222414,0.24612094,85324.0,85321.0,0.02259368]
[1744915222781,0.24612094,85324.0,85321.0,0.25700098]
[1744915223044,0.23440531,85323.0,85321.0,0.02259368]
[1744915223240,0.23440531,85323.0,85321.0,0.25700155]
[1744915223871,0.23440531,85323.0,85321.0,0.02259368]
[1744915224075,0.24612105,85324.0,85321.0,0.25699988]
[1744915224403,0.23440613,85322.0,85321.0,0.02259368]
[1744915224937,0.2344054,85323.0,85321.0,0.02259368]
[1744915225280,0.24612105,85324.0,85321.0,0.25700021]
[1744915228023,0.24612105,85324.0,85320.0,0.01176536]
[1744915228223,0.24612105,85324.0,85321.0,0.23440653]
[1744915228646,0.2461252,85323.0,85320.0,0.2344558]
[1744915228855,0.23440887,85321.0,85320.0,4.478e-05]
[1744915229055,0.23440748,85322.0,85320.0,4.478e-05]
[1744915229387,0.23440748,85322.0,85320.0,0.00890703]
[1744915229592,0.23440748,85322.0,85320.0,4.478e-05]
[1744915230893,0.23440887,85321.0,85320.0,4.478e-05]
[1744915231243,0.24612374,85323.0,85320.0,4.478e-05]
[1744915231442,0.24612374,85323.0,85320.0,0.00894071]
[1744915231683,0.23440887,85321.0,85320.0,0.00894071]
[1744915232882,0.24612374,85323.0,85320.0,0.00894071]
[1744915233096,0.01172016,85323.0,85320.0,0.25507066]
[1744915233346,0.23440638,85322.0,85320.0,0.00894071]
[1744915233566,0.24612568,85323.0,85320.0,0.24335144]
[1744915234048,0.24612568,85323.0,85320.0,0.00894071]
[1744915234183,0.24612568,85323.0,85320.0,0.01773449]
[1744915234945,0.23440613,85322.0,85320.0,0.01773449]
[1744915235757,0.24612568,85323.0,85320.0,0.2521456]
[1744915236324,0.23440887,85321.0,85320.0,0.01773449]
[1744915236731,0.23440629,85322.0,85320.0,0.01773449]
[1744915237078,0.24612255,85324.0,85321.0,0.23440887]
[1744915237308,0.2461247,85323.0,85320.0,0.25214114]
[1744915237458,0.2461247,85323.0,85322.0,0.00824655]
[1744915237660,0.01172016,85323.0,85321.0,0.23440887]
[1744915237871,0.01172016,85323.0,85322.0,0.00824573]
[1744915238084,0.01172016,85323.0,85322.0,0.00687144]
[1744915238600,0.01172016,85323.0,85322.0,0.00572703]
[1744915238794,0.01172016,85323.0,85319.0,0.25973459]
[1744915238992,4.475e-05,85323.0,85322.0,0.00574519]
[1744915239197,0.01176491,85323.0,85320.0,0.23440957]
[1744915239489,0.24616848,85323.0,85322.0,0.00574519]
[1744915239737,0.23440613,85322.0,85321.0,0.00574437]
[1744915239944,0.23441162,85320.0,85319.0,0.01359953]
[1744915240435,0.23441143,85321.0,85319.0,0.01359953]
[1744915240581,0.23441162,85320.0,85319.0,0.01359953]
[1744915241912,0.24613143,85322.0,85319.0,0.01359953]
[1744915242274,0.23441162,85320.0,85319.0,0.01359953]
[1744915243762,0.24613143,85322.0,85319.0,0.01359953]
[1744915243920,0.0117203,85322.0,85319.0,0.0223621]
[1744915244447,4e-05,85320.0,85319.0,0.0223621]
[1744915244623,0.23445162,85320.0,85319.0,0.0223621]
[1744915245669,0.23445162,85320.0,85319.0,0.02810482]
[1744915246750,0.23445162,85320.0,85319.0,0.01934225]
[1744915246941,0.44549953,85320.0,85319.0,0.01934225]
[1744915247160,0.44553953,85320.0,85319.0,0.01359953]
[1744915249815,0.44553953,85320.0,85319.0,1e-08]
[1744915251344,0.23446383,85301.0,85300.0,0.29239533]
[1744915251498,0.23446383,85301.0,85300.0,0.0008424]
[1744915252133,0.23446383,85301.0,85300.0,0.01911339]
[1744915252347,0.23446383,85301.0,85300.0,0.01444683]
[1744915254694,0.23446383,85301.0,85300.0,0.03228488]
[1744915257286,0.23450383,85301.0,85300.0,0.03228488]
[1744915257848,0.23447208,85298.0,85294.0,0.0008434]
[1744915258225,0.23448033,85295.0,85294.0,0.0008434]
[1744915258438,0.35392824,85295.0,85294.0,0.0008434]
[1744915259327,0.35392824,85295.0,85280.0,0.29155293]
[1744915259328,0.23451882,85281.0,85280.0,0.09729781]
[1744915259564,0.23452432,85279.0,85278.0,0.0008436]
[1744915259762,0.23452432,85279.0,85278.0,0.00129183]
[1744915261927,0.23456432,85279.0,85278.0,0.00129183]
[1744915262339,0.23460432,85279.0,85278.0,0.00129183]
[1744915262742,0.23464432,85279.0,85278.0,0.00129183]
[1744915262984,0.23468432,85279.0,85278.0,0.00129183]
[1744915263198,0.23472432,85279.0,85278.0,0.00129183]
[1744915265253,0.23476432,85279.0,85278.0,0.01942205]
[1744915265756,0.23480432,85279.0,85278.0,0.01942205]
[1744915268424,0.35525223,85279.0,85278.0,0.01942205]
[1744915268627,0.23454082,85273.0,85269.0,0.0008434]
[1744915268833,0.39978873,85273.0,85272.0,0.00088816]
[1744915270252,0.35398873,85273.0,85272.0,0.00088816]
[1744915271493,0.23454082,85273.0,85272.0,0.00088816]
[1744915272460,0.23458082,85273.0,85272.0,0.00088816]
[1744915274584,4e-05,85273.0,85272.0,0.00088816]
[1744915274814,4e-05,85273.0,85272.0,0.23543173]
[1744915275016,4e-05,85273.0,85271.0,0.25200156]
[1744915275225,4e-05,85273.0,85272.0,0.23454357]
[1744915275629,4e-05,85273.0,85272.0,0.27974357]
[1744915278442,0.01172346,85299.0,85287.0,0.01172511]
[1744915278656,0.01172181,85311.0,85300.0,0.23446658]
[1744915278799,0.2461582,85311.0,85300.0,0.23446658]
[1744915278999,0.2344335,85313.0,85300.0,0.23446658]
[1744915279303,0.23444835,85307.0,85300.0,0.24334011]
[1744915279683,0.0117225,85306.0,85300.0,0.24334011]
[1744915279885,0.00048759,85301.0,85300.0,0.24334011]
[1744915280592,0.00048759,85301.0,85300.0,0.00887353]
[1744915280593,0.23495142,85301.0,85300.0,0.00887353]
[1744915280830,0.01172346,85299.0,85293.0,0.24620825]
[1744915281030,0.24667461,85301.0,85298.0,0.23447089]
[1744915281237,0.01221078,85301.0,85298.0,0.23447089]
[1744915281441,0.01172415,85294.0,85290.0,0.34]
[1744915281655,0.23447208,85298.0,85293.0,0.234484]
[1744915281656,0.01172387,85296.0,85293.0,0.234484]
[1744915282127,0.23446365,85302.0,85299.0,0.23446711]
[1744915282330,0.01172332,85300.0,85297.0,0.23447282]
[1744915282534,0.01221078,85301.0,85299.0,0.23446933]
[1744915282745,0.01172346,85299.0,85297.0,0.23447335]
[1744915282944,0.0117236,85298.0,85296.0,0.23447749]
[1744915283318,0.01221078,85301.0,85297.0,0.23447483]
[1744915283319,0.24667514,85301.0,85297.0,0.23447483]
[1744915283518,0.24619143,85300.0,85296.0,0.23447209]
[1744915283721,0.01172346,85299.0,85296.0,0.23447209]
[1744915283924,0.24619143,85300.0,85297.0,0.2344738]
[1744915284809,0.24619304,85299.0,85296.0,0.23447209]
[1744915285144,0.01172346,85299.0,85296.0,0.23447209]
[1744915285968,0.24619143,85300.0,85297.0,0.2344743]
[1744915286144,0.00048759,85301.0,85300.0,0.23446658]
[1744915286481,0.00048759,85301.0,85299.0,0.23446933]
[1744915286680,0.00048759,85301.0,85298.0,0.23447163]
[1744915286681,0.00048759,85301.0,85297.0,0.2344722]
[1744915287004,0.01172332,85300.0,85298.0,0.23447195]
[1744915288190,0.00048759,85301.0,85299.0,0.23446933]
[1744915288402,0.24667493,85301.0,85298.0,0.23447195]
[1744915288559,0.23446988,85299.0,85297.0,0.23447386]
[1744915288761,0.24619155,85300.0,85297.0,0.23447386]
[1744915288958,0.01172346,85299.0,85297.0,0.23447481]
[1744915289176,0.01172346,85299.0,85297.0,0.2344743]
[1744915289573,0.2461925,85300.0,85297.0,0.23447483]
[1744915291134,0.23446933,85299.0,85298.0,0.34]
[1744915292116,0.23448033,85295.0,85294.0,0.00876072]
[1744915292387,0.24620195,85296.0,85293.0,0.57448496]
[1744915292547,0.01172387,85296.0,85295.0,0.34]
[1744915292940,0.24620031,85297.0,85295.0,0.34]
[1744915293340,0.23447758,85296.0,85295.0,0.34]
[1744915293541,0.01172401,85295.0,85292.0,0.34]
[1744915293758,0.01172387,85296.0,85292.0,0.34863865]
[1744915294158,0.24620434,85295.0,85292.0,0.58312689]
[1744915294639,0.24620654,85296.0,85293.0,0.23448503]
[1744915295056,0.24620444,85295.0,85292.0,0.58312689]
[1744915295262,0.01172401,85295.0,85293.0,0.234485]
[1744915295977,0.23448308,85294.0,85292.0,0.00863865]
[1744915296193,0.24620723,85294.0,85291.0,0.57449118]
[1744915297054,0.24620953,85295.0,85292.0,0.23448858]
[1744915297439,0.24620953,85295.0,85294.0,0.34]
[1744915298335,0.24620953,85295.0,85292.0,0.23448858]
[1744915299332,0.24620367,85296.0,85294.0,0.34]
[1744915299716,0.23448033,85295.0,85294.0,0.265]
[1744915299916,0.24620434,85295.0,85292.0,0.23448835]
[1744915300315,0.01221078,85301.0,85296.0,0.01172387]
[1744915300521,0.00048759,85301.0,85298.0,0.0117236]
[1744915300691,0.23447306,85298.0,85295.0,0.27967984]
[1744915300894,0.24619842,85298.0,85295.0,0.23447984]
[1744915301093,0.24619585,85298.0,85294.0,0.01172415]
[1744915301322,0.0117236,85298.0,85296.0,0.23447683]
[1744915301622,0.24619713,85298.0,85295.0,0.23448033]
[1744915301820,0.24619713,85298.0,85296.0,0.23447742]
[1744915302020,0.0117236,85298.0,85296.0,0.23447742]
[1744915302357,0.24620145,85296.0,85293.0,0.23448572]
[1744915302647,0.01172374,85297.0,85296.0,0.34]
[1744915302849,0.24619605,85298.0,85296.0,0.57447758]
[1744915303553,0.24623605,85298.0,85296.0,0.57447758]
[1744915303770,0.24623605,85298.0,85296.0,0.34]
[1744915305170,0.0117636,85298.0,85296.0,0.57447615]
[1744915305587,4e-05,85298.0,85297.0,0.23447483]
[1744915305913,4e-05,85298.0,85296.0,0.57447702]
[1744915306210,0.23451265,85298.0,85296.0,0.57447702]
[1744915306554,0.01172387,85296.0,85294.0,0.34]
[1744915306768,0.23447483,85297.0,85296.0,0.34]
[1744915307202,0.24623625,85298.0,85296.0,0.34]
[1744915308047,0.23447483,85297.0,85296.0,0.34]
[1744915308246,0.01172387,85296.0,85292.0,0.34]
[1744915308499,0.24619857,85297.0,85294.0,0.34]
[1744915308690,0.24619857,85297.0,85296.0,0.34]
[1744915309149,0.01172374,85297.0,85296.0,0.34]
[1744915310382,4e-05,85298.0,85297.0,0.23447483]
[1744915310590,0.0008438,85315.0,85313.0,0.23442812]
[1744915310794,0.24614304,85317.0,85316.0,0.34]
[1744915310795,0.23441986,85317.0,85316.0,0.34]
[1744915311287,0.23445009,85306.0,85305.0,0.4280118]
[1744915311487,0.01172305,85302.0,85299.0,0.34]
[1744915311795,0.01172305,85302.0,85299.0,0.57546708]
[1744915312231,0.24618425,85302.0,85299.0,0.57546708]
[1744915312408,0.01172291,85303.0,85302.0,0.34]
[1744915312629,0.01172264,85305.0,85304.0,0.34]
[1744915313042,0.23444176,85310.0,85306.0,0.23444797]
[1744915313244,0.24616466,85309.0,85306.0,0.23444797]
[1744915313442,0.24616342,85311.0,85309.0,0.23444051]
[1744915313777,0.01172181,85311.0,85308.0,0.2344446]
[1744915313993,0.23446109,85302.0,85301.0,0.34]
[1744915314233,0.24618347,85303.0,85301.0,0.34]
[1744915314433,0.24617844,85304.0,85301.0,0.34]
[1744915314558,0.24617844,85304.0,85301.0,0.57446165]
[1744915314962,0.24617903,85304.0,85301.0,0.57446383]
[1744915315167,0.23446098,85303.0,85301.0,0.34]
[1744915315387,4e-05,85302.0,85301.0,0.57446383]
[1744915316595,4e-05,85302.0,85301.0,0.34]
[1744915316803,0.23450109,85302.0,85301.0,0.34]
[1744915317540,4e-05,85302.0,85301.0,0.34]
[1744915317819,0.23450109,85302.0,85301.0,0.34]
[1744915318685,4e-05,85302.0,85301.0,0.34]
[1744915320071,0.23450109,85302.0,85301.0,0.34]
[1744915321326,4e-05,85302.0,85301.0,0.34]
[1744915321755,4e-05,85302.0,85301.0,0.341]
[1744915321986,4e-05,85302.0,85301.0,0.57546383]
[1744915322179,4e-05,85302.0,85301.0,0.341]
[1744915322406,0.23450109,85302.0,85301.0,0.001]
[1744915322884,4e-05,85302.0,85301.0,0.341]
[1744915323296,4e-05,85302.0,85301.0,0.57546383]
[1744915325084,4e-05,85302.0,85301.0,0.341]
[1744915326481,0.23450109,85302.0,85301.0,0.001]
[1744915332102,0.23454109,85302.0,85301.0,0.001]
[1744915332829,0.23458109,85302.0,85301.0,0.001]
[1744915335734,0.23448308,85294.0,85292.0,0.5835436]
[1744915335932,0.23448858,85292.0,85291.0,0.00856499]
[1744915336139,0.23448858,85292.0,85289.0,0.23449437]
[1744915336341,0.246213,85292.0,85289.0,0.07053845]
[1744915336743,0.01172442,85292.0,85290.0,0.23449273]
[1744915336950,0.23449132,85291.0,85289.0,0.23449611]
[1744915337151,0.23449407,85290.0,85287.0,0.24622685]
[1744915337615,0.24621588,85291.0,85287.0,0.24622685]
[1744915337828,0.24621317,85292.0,85288.0,0.24622312]
[1744915338330,0.24621605,85291.0,85288.0,0.24622312]
[1744915338828,0.23449154,85291.0,85288.0,0.24622312]
[1744915339068,0.24621317,85292.0,85288.0,0.24622312]
[1744915339189,0.24621317,85292.0,85288.0,0.25519501]
[1744915339392,0.24625317,85292.0,85288.0,0.25519501]
[1744915339946,0.23449167,85291.0,85288.0,0.25519501]
[1744915342405,0.23449545,85290.0,85288.0,0.00897189]
[1744915342800,0.23449545,85290.0,85287.0,0.23450083]
[1744915342945,0.23449545,85290.0,85288.0,0.23449904]
[1744915343144,0.23449545,85290.0,85288.0,0.24320307]
[1744915343345,0.24621644,85291.0,85288.0,0.24320307]
[1744915343771,0.24621644,85291.0,85288.0,0.00870403]
[1744915343772,0.23449407,85290.0,85288.0,0.00870403]
[1744915343981,0.23451607,85282.0,85280.0,0.4279318]
[1744915344177,0.23451882,85281.0,85280.0,0.13616]
[1744915344550,0.01176442,85292.0,85285.0,0.23450706]
[1744915344750,4e-05,85292.0,85289.0,0.01172484]
[1744915345005,4e-05,85292.0,85291.0,0.23449132]
[1744915345315,4e-05,85292.0,85289.0,0.24622148]
[1744915345516,0.23453,85292.0,85290.0,0.23449337]
[1744915345728,0.23453,85292.0,85289.0,0.24622148]
[1744915346170,4e-05,85292.0,85289.0,0.01172484]
[1744915346378,4e-05,85292.0,85290.0,0.23449192]
[1744915346580,0.23452913,85292.0,85289.0,0.01172484]
[1744915346778,0.01176442,85292.0,85288.0,0.24622429]
[1744915346981,0.23449258,85291.0,85289.0,0.23449598]
[1744915347433,0.01176442,85292.0,85290.0,0.23449407]
[1744915348210,0.24625348,85292.0,85289.0,0.24622082]
[1744915348761,0.01176442,85292.0,85289.0,0.24622082]
[1744915349109,0.24625365,85292.0,85289.0,0.24622082]
[1744915351573,0.01172456,85291.0,85287.0,0.34]
[1744915351764,0.23449487,85290.0,85287.0,0.34]
[1744915352272,0.23449487,85290.0,85287.0,0.57450221]
[1744915352431,0.24621957,85290.0,85287.0,0.58622732]
[1744915352835,0.0117247,85290.0,85289.0,0.34]
[1744915353256,0.24621877,85290.0,85289.0,0.34]
[1744915354161,4e-05,85292.0,85290.0,0.23449407]
[1744915354360,4e-05,85292.0,85291.0,0.34]
[1744915354565,4e-05,85292.0,85291.0,0.57449132]
[1744915355304,0.01176442,85292.0,85289.0,0.57449622]
[1744915355536,0.246253,85292.0,85291.0,0.34]
[1744915356021,0.01176442,85292.0,85291.0,0.34]
[1744915356378,4e-05,85292.0,85291.0,0.57449132]
[1744915356557,4e-05,85292.0,85291.0,0.34]
[1744915356975,0.01172456,85291.0,85289.0,0.34]
[1744915357204,0.24621597,85291.0,85289.0,0.34]
[1744915357432,0.01172456,85291.0,85289.0,0.57449611]
[1744915357649,0.2941536,85292.0,85289.0,0.57449611]
[1744915358503,0.23449282,85291.0,85289.0,0.57449636]
[1744915358697,0.23449957,85288.0,85287.0,0.34]
[1744915358932,0.01172552,85284.0,85281.0,0.2917718]
[1744915359267,0.27981882,85281.0,85280.0,0.001]
[1744915362310,0.05792497,85288.0,85280.0,0.001]
[1744915362510,0.01172456,85291.0,85286.0,0.01172525]
[1744915362727,0.01176442,85292.0,85281.0,0.00234508]
[1744915362728,0.23451135,85284.0,85282.0,0.0117258]
[1744915362955,0.01172525,85286.0,85283.0,0.01172566]
[1744915363134,0.24622753,85287.0,85284.0,0.2345087]
[1744915363284,0.24622782,85287.0,85285.0,0.34]
[1744915363493,0.23449135,85291.0,85287.0,0.23450232]
[1744915363699,0.23453407,85292.0,85286.0,0.01172525]
[1744915363700,0.0117247,85290.0,85286.0,0.24622959]
[1744915363903,0.0117247,85290.0,85287.0,0.2345015]
[1744915364705,0.0117247,85290.0,85288.0,0.23449879]
[1744915364956,0.24621879,85290.0,85287.0,0.2345015]
[1744915365239,0.24621879,85290.0,85286.0,0.24622959]
[1744915366092,0.24621879,85290.0,85287.0,0.23450192]
[1744915366433,4e-05,85292.0,85287.0,0.01172511]
[1744915366676,0.24625415,85292.0,85289.0,0.01172484]
[1744915366884,0.01176442,85292.0,85289.0,0.24622051]
[1744915367091,0.2462557,85292.0,85289.0,0.24622051]
[1744915367917,0.01172456,85291.0,85272.0,0.01172717]
[1744915368125,0.01172484,85289.0,85271.0,0.01745673]
[1744915368337,0.23451607,85282.0,85271.0,0.01745673]
[1744915368535,0.23451607,85282.0,85280.0,0.001]
[1744915369947,0.23451882,85281.0,85280.0,0.001]
[1744915371220,0.23452432,85279.0,85278.0,0.00863806]
[1744915371431,0.23453807,85274.0,85273.0,0.34]
[1744915371602,0.23454357,85272.0,85271.0,0.01745673]
[1744915371806,0.23454632,85271.0,85266.0,0.35874526]
[1744915372001,0.23455733,85267.0,85260.0,0.93614046]
[1744915372305,0.23456008,85266.0,85265.0,0.15752777]
[1744915372732,0.23456008,85266.0,85265.0,0.15797536]
[1744915374097,0.23456008,85266.0,85265.0,0.49797536]
[1744915374845,0.23456008,85266.0,85265.0,0.50658557]
[1744915377553,0.23456008,85266.0,85265.0,0.16658557]
[1744915391826,0.23456008,85266.0,85265.0,0.02185536]
[1744915392027,0.23456008,85266.0,85265.0,1e-08]
[1744915392028,0.40200799,85266.0,85265.0,1e-08]
[1744915392462,0.23457658,85260.0,85254.0,0.0004219]
[1744915392661,0.23457658,85260.0,85259.0,0.0005563]
[1744915393180,0.23457658,85260.0,85259.0,0.02110291]
[1744915409476,0.23457658,85260.0,85250.0,0.44504166]
[1744915409477,0.2345986,85252.0,85250.0,0.44504166]
[1744915409682,0.24633141,85251.0,85250.0,0.01810283]
[1744915409900,0.23461511,85246.0,85242.0,0.44504166]
[1744915410881,0.23461511,85246.0,85245.0,0.01879348]
[1744915412814,0.23461511,85246.0,85245.0,0.02736079]